[Event "Early-Titled-Tuesday-Blitz-May-07-2024"]
[Site "Chess.com"]
[Date "2024.05.07"]
[Round "11"]
[White "MasterKroket"]
[Black "Aleksandar-Topalov"]
[Result "0-1"]
[WhiteElo "2506"]
[BlackElo "2423"]
[TimeControl "180+1"]
[EndTime "10:16:56 PDT"]
[Termination "Aleksandar-Topalov won on time"]

1. e4 {[%clk 0:03:00.9]} 1... e6 {[%clk 0:02:59.7]} 2. d4 {[%clk 0:02:59.7]}
2... d5 {[%clk 0:02:59.8]} 3. Nc3 {[%clk 0:02:59.9]} 3... Bb4 {[%clk 0:02:59]}
4. e5 {[%clk 0:03:00.3]} 4... Qd7 {[%clk 0:02:58.9]} 5. h4 {[%clk 0:02:56.2]}
5... h5 {[%clk 0:02:58.1]} 6. Nh3 {[%clk 0:02:54.9]} 6... b6 {[%clk 0:02:57.7]}
7. Nf4 {[%clk 0:02:49.6]} 7... g6 {[%clk 0:02:57.1]} 8. Nd3 {[%clk 0:02:43.2]}
8... Be7 {[%clk 0:02:55.8]} 9. b4 {[%clk 0:02:36.1]} 9... Ba6 {[%clk 0:02:52.5]}
10. a3 {[%clk 0:02:26.3]} 10... Bc4 {[%clk 0:02:52.3]} 11. Bg5 {[%clk
0:02:16.1]} 11... Nc6 {[%clk 0:02:51.2]} 12. Nf4 {[%clk 0:02:04.1]} 12... Bxf1
{[%clk 0:02:50.6]} 13. Kxf1 {[%clk 0:02:03.9]} 13... Nh6 {[%clk 0:02:47.6]} 14.
Rh3 {[%clk 0:01:49.3]} 14... Nf5 {[%clk 0:02:46.3]} 15. Nce2 {[%clk 0:01:46.3]}
15... Bxg5 {[%clk 0:02:13.7]} 16. hxg5 {[%clk 0:01:45]} 16... Qe7 {[%clk
0:02:13.9]} 17. g4 {[%clk 0:01:38.1]} 17... Ng7 {[%clk 0:02:13.8]} 18. gxh5
{[%clk 0:01:37.6]} 18... Nxh5 {[%clk 0:02:13.6]} 19. Nxh5 {[%clk 0:01:36.2]}
19... Rxh5 {[%clk 0:02:12.6]} 20. Rxh5 {[%clk 0:01:35.6]} 20... gxh5 {[%clk
0:02:12.8]} 21. f4 {[%clk 0:01:36.2]} 21... O-O-O {[%clk 0:02:11.3]} 22. Qd3
{[%clk 0:01:33.9]} 22... Rh8 {[%clk 0:02:06]} 23. Ke1 {[%clk 0:01:34]} 23... Qd7
{[%clk 0:02:01]} 24. Kd2 {[%clk 0:01:33.4]} 24... Ne7 {[%clk 0:02:01]} 25. Ng3
{[%clk 0:01:29]} 25... h4 {[%clk 0:02:00.4]} 26. Rh1 {[%clk 0:01:28]} 26... Ng6
{[%clk 0:01:58]} 27. Ne2 {[%clk 0:01:25.4]} 27... Ne7 {[%clk 0:01:55.9]} 28. Rh3
{[%clk 0:01:14.9]} 28... Nf5 {[%clk 0:01:54.8]} 29. b5 {[%clk 0:01:08.3]} 29...
Kb7 {[%clk 0:01:50.6]} 30. a4 {[%clk 0:01:06.6]} 30... c6 {[%clk 0:01:49.4]} 31.
Qb3 {[%clk 0:01:04.3]} 31... Rc8 {[%clk 0:01:41.9]} 32. c3 {[%clk 0:01:01.8]}
32... c5 {[%clk 0:01:37.5]} 33. Qa3 {[%clk 0:00:47.7]} 33... Qc7 {[%clk
0:01:31.6]} 34. dxc5 {[%clk 0:00:46.1]} 34... bxc5 {[%clk 0:01:18.2]} 35. a5
{[%clk 0:00:45.9]} 35... d4 {[%clk 0:01:13.9]} 36. c4 {[%clk 0:00:43.6]} 36...
Ne3 {[%clk 0:01:07.4]} 37. Qa4 {[%clk 0:00:32.5]} 37... Rh8 {[%clk 0:00:54.7]}
38. a6+ {[%clk 0:00:25.9]} 38... Kb8 {[%clk 0:00:53.9]} 39. Ng1 {[%clk 0:00:24]}
39... Qa5+ {[%clk 0:00:44.2]} 40. Qxa5 {[%clk 0:00:23.7]} 40... Nxc4+ {[%clk
0:00:44.5]} 41. Kd3 {[%clk 0:00:23.6]} 41... Nxa5 {[%clk 0:00:44.8]} 42. Nf3
{[%clk 0:00:24.5]} 42... Kc7 {[%clk 0:00:39.6]} 43. Rxh4 {[%clk 0:00:24.5]}
43... Rxh4 {[%clk 0:00:38.9]} 44. Nxh4 {[%clk 0:00:25.4]} 44... Kb6 {[%clk
0:00:37.3]} 45. f5 {[%clk 0:00:25.9]} 45... Kxb5 {[%clk 0:00:26]} 46. fxe6
{[%clk 0:00:25.7]} 46... fxe6 {[%clk 0:00:26.4]} 47. g6 {[%clk 0:00:26.3]} 47...
Nc6 {[%clk 0:00:26.7]} 48. Nf3 {[%clk 0:00:21.9]} 48... Ne7 {[%clk 0:00:22.4]}
49. g7 {[%clk 0:00:20.3]} 49... Kxa6 {[%clk 0:00:20.6]} 50. Kc4 {[%clk
0:00:19.6]} 50... Kb6 {[%clk 0:00:20.4]} 51. Ng5 {[%clk 0:00:19.6]} 51... a5
{[%clk 0:00:20.6]} 52. Nxe6 {[%clk 0:00:19.9]} 52... a4 {[%clk 0:00:19.6]} 53.
Nxc5 {[%clk 0:00:20.5]} 53... a3 {[%clk 0:00:20]} 54. Nb3 {[%clk 0:00:20.1]}
54... a2 {[%clk 0:00:20]} 55. Kxd4 {[%clk 0:00:20.2]} 55... Kb5 {[%clk
0:00:19.9]} 56. e6 {[%clk 0:00:19.9]} 56... Kb4 {[%clk 0:00:19.8]} 57. Na1
{[%clk 0:00:20.3]} 57... Ka3 {[%clk 0:00:19.7]} 58. Ke5 {[%clk 0:00:15.9]} 58...
Kb2 {[%clk 0:00:19.9]} 59. Kf6 {[%clk 0:00:16.3]} 59... Ng8+ {[%clk 0:00:19.4]}
60. Kf7 {[%clk 0:00:16.8]} 60... Kxa1 {[%clk 0:00:19.6]} 61. Kxg8 {[%clk
0:00:16.4]} 61... Kb2 {[%clk 0:00:19.9]} 62. e7 {[%clk 0:00:16.9]} 62... a1=Q
{[%clk 0:00:20.5]} 63. e8=Q {[%clk 0:00:17.8]} 63... Qa2+ {[%clk 0:00:19.3]} 64.
Qf7 {[%clk 0:00:17.8]} 64... Qa8+ {[%clk 0:00:19.3]} 65. Qf8 {[%clk 0:00:18.1]}
65... Qa2+ {[%clk 0:00:19]} 66. Kh7 {[%clk 0:00:16.6]} 66... Qb1+ {[%clk
0:00:19.2]} 67. Kh6 {[%clk 0:00:16.5]} 67... Qh1+ {[%clk 0:00:18.8]} 68. Kg6
{[%clk 0:00:16.7]} 68... Qg2+ {[%clk 0:00:18.9]} 69. Kf7 {[%clk 0:00:15.1]}
69... Qf3+ {[%clk 0:00:18.9]} 70. Ke7 {[%clk 0:00:14.3]} 70... Qb7+ {[%clk
0:00:18]} 71. Ke6 {[%clk 0:00:11.5]} 71... Qe4+ {[%clk 0:00:17.8]} 72. Kf7
{[%clk 0:00:07.6]} 72... Qd5+ {[%clk 0:00:17.4]} 73. Kg6 {[%clk 0:00:07.9]}
73... Qg2+ {[%clk 0:00:17.4]} 74. Kh7 {[%clk 0:00:07.5]} 74... Qh3+ {[%clk
0:00:16.4]} 75. Kg8 {[%clk 0:00:08.1]} 75... Qb3+ {[%clk 0:00:15.5]} 76. Qf7
{[%clk 0:00:08.8]} 76... Qb8+ {[%clk 0:00:15.2]} 77. Kh7 {[%clk 0:00:09.5]}
77... Qh2+ {[%clk 0:00:15]} 78. Kg6 {[%clk 0:00:09.9]} 78... Qg3+ {[%clk
0:00:14.7]} 79. Kf6 {[%clk 0:00:10.1]} 79... Qf3+ {[%clk 0:00:14.9]} 80. Ke7
{[%clk 0:00:09.8]} 80... Qb7+ {[%clk 0:00:14.6]} 81. Kf8 {[%clk 0:00:10.4]}
81... Qc8+ {[%clk 0:00:14.3]} 82. Qe8 {[%clk 0:00:10.4]} 82... Qf5+ {[%clk
0:00:14.5]} 83. Kg8 {[%clk 0:00:09.7]} 83... Qd5+ {[%clk 0:00:14]} 84. Kh7
{[%clk 0:00:09.2]} 84... Qe4+ {[%clk 0:00:11.1]} 85. Kh6 {[%clk 0:00:09.3]}
85... Qh4+ {[%clk 0:00:10.7]} 86. Kg6 {[%clk 0:00:08.8]} 86... Qg4+ {[%clk
0:00:11.1]} 87. Kf6 {[%clk 0:00:08.7]} 87... Qf4+ {[%clk 0:00:11.4]} 88. Ke7
{[%clk 0:00:06.1]} 88... Qe5+ {[%clk 0:00:11.2]} 89. Kf8 {[%clk 0:00:03.9]}
89... Qd6+ {[%clk 0:00:09.3]} 90. Qe7 {[%clk 0:00:04.1]} 90... Qh6 {[%clk
0:00:08.5]} 91. Kf7 {[%clk 0:00:03.9]} 91... Qh5+ {[%clk 0:00:08.5]} 92. Ke6
{[%clk 0:00:02.1]} 92... Qg6+ {[%clk 0:00:08.8]} 93. Kd7 {[%clk 0:00:02.2]}
93... Qd3+ {[%clk 0:00:08]} 94. Qd6 {[%clk 0:00:01.5]} 94... Qf5+ {[%clk
0:00:07]} 95. Ke8 {[%clk 0:00:01.2]} 95... Qc8+ {[%clk 0:00:04.8]} 96. Kf7
{[%clk 0:00:01.1]} 96... Qb7+ {[%clk 0:00:04.5]} 0-1

[Event "Early-Titled-Tuesday-Blitz-May-07-2024"]
[Site "Chess.com"]
[Date "2024.05.07"]
[Round "11"]
[White "watermelonattackk"]
[Black "CruzWilliam"]
[Result "1/2-1/2"]
[WhiteElo "2557"]
[BlackElo "2417"]
[TimeControl "180+1"]
[EndTime "10:17:19 PDT"]
[Termination "Game drawn - insufficient material"]

1. b3 {[%clk 0:02:59.1]} 1... e5 {[%clk 0:02:59.5]} 2. Bb2 {[%clk 0:02:58.5]}
2... Nc6 {[%clk 0:02:59.3]} 3. e3 {[%clk 0:02:58.7]} 3... g6 {[%clk 0:02:59.2]}
4. d3 {[%clk 0:02:58.7]} 4... Bg7 {[%clk 0:02:59.3]} 5. Nd2 {[%clk 0:02:59]}
5... Nf6 {[%clk 0:02:58.9]} 6. g3 {[%clk 0:02:59.4]} 6... O-O {[%clk 0:02:58.6]}
7. Bg2 {[%clk 0:02:59.9]} 7... d5 {[%clk 0:02:58.8]} 8. Ne2 {[%clk 0:02:59.7]}
8... Re8 {[%clk 0:02:57.7]} 9. O-O {[%clk 0:02:59.6]} 9... a5 {[%clk 0:02:53.9]}
10. a3 {[%clk 0:02:59.6]} 10... Qe7 {[%clk 0:02:41.8]} 11. h3 {[%clk 0:02:59.3]}
11... Be6 {[%clk 0:02:39.6]} 12. Rb1 {[%clk 0:02:55.6]} 12... Rad8 {[%clk
0:02:38.7]} 13. Kh2 {[%clk 0:02:53.5]} 13... Nd7 {[%clk 0:02:34.7]} 14. f4
{[%clk 0:02:51.9]} 14... exf4 {[%clk 0:02:28.1]} 15. Nxf4 {[%clk 0:02:51.7]}
15... Bxb2 {[%clk 0:02:24.1]} 16. Rxb2 {[%clk 0:02:50.6]} 16... Nb6 {[%clk
0:02:19]} 17. Rb1 {[%clk 0:02:49.6]} 17... Bc8 {[%clk 0:02:15.8]} 18. e4 {[%clk
0:02:46]} 18... dxe4 {[%clk 0:02:07.4]} 19. Nxe4 {[%clk 0:02:46.2]} 19... f5
{[%clk 0:02:01.9]} 20. Nf2 {[%clk 0:02:37.2]} 20... Qxa3 {[%clk 0:02:00.7]} 21.
h4 {[%clk 0:02:30.4]} 21... Qe7 {[%clk 0:01:58.9]} 22. N2h3 {[%clk 0:02:27.4]}
22... Ne5 {[%clk 0:01:51]} 23. Qd2 {[%clk 0:02:20.4]} 23... Ng4+ {[%clk
0:01:48.9]} 24. Kh1 {[%clk 0:02:20.3]} 24... Qe3 {[%clk 0:01:43.5]} 25. Qxe3
{[%clk 0:02:12.7]} 25... Nxe3 {[%clk 0:01:42.2]} 26. Rf2 {[%clk 0:02:08.2]}
26... Nxg2 {[%clk 0:01:39.4]} 27. Kxg2 {[%clk 0:02:08.1]} 27... Nd5 {[%clk
0:01:39.3]} 28. Nxd5 {[%clk 0:02:02.8]} 28... Rxd5 {[%clk 0:01:38.5]} 29. Nf4
{[%clk 0:02:03.7]} 29... Rde5 {[%clk 0:01:37.7]} 30. d4 {[%clk 0:02:01.4]} 30...
Re4 {[%clk 0:01:33.9]} 31. Rd1 {[%clk 0:02:00.8]} 31... b6 {[%clk 0:01:32.1]}
32. d5 {[%clk 0:01:58.8]} 32... Bb7 {[%clk 0:01:30.9]} 33. c4 {[%clk 0:01:57.8]}
33... a4 {[%clk 0:01:27.7]} 34. Ra2 {[%clk 0:01:48.1]} 34... axb3 {[%clk
0:01:19.7]} 35. Ra7 {[%clk 0:01:47.8]} 35... Rb8 {[%clk 0:01:18.3]} 36. Rb1
{[%clk 0:01:44.4]} 36... Rxc4 {[%clk 0:01:08.6]} 37. Rxb3 {[%clk 0:01:43.6]}
37... Rc5 {[%clk 0:01:03.8]} 38. Kf2 {[%clk 0:01:42.8]} 38... Kf7 {[%clk
0:00:36.3]} 39. d6 {[%clk 0:01:40.5]} 39... Rc2+ {[%clk 0:00:20]} 40. Ke1 {[%clk
0:01:40.4]} 40... cxd6 {[%clk 0:00:18]} 41. Rxb6 {[%clk 0:01:37.5]} 41... Rc7
{[%clk 0:00:13.7]} 42. Rxd6 {[%clk 0:01:28.1]} 42... Re8+ {[%clk 0:00:13.4]} 43.
Kd2 {[%clk 0:01:27]} 43... Ree7 {[%clk 0:00:14]} 44. Nh3 {[%clk 0:01:10.2]}
44... Rcd7 {[%clk 0:00:14.2]} 45. Ng5+ {[%clk 0:01:10]} 45... Kg7 {[%clk
0:00:14.4]} 46. Rxd7 {[%clk 0:01:07.9]} 46... Rxd7+ {[%clk 0:00:14.7]} 47. Ke3
{[%clk 0:01:07.3]} 47... h6 {[%clk 0:00:15.1]} 48. Ne6+ {[%clk 0:01:06.1]} 48...
Kf6 {[%clk 0:00:14.5]} 49. Nc5 {[%clk 0:01:06.3]} 49... Re7+ {[%clk 0:00:15.2]}
50. Kd4 {[%clk 0:01:06.2]} 50... Bf3 {[%clk 0:00:15.1]} 51. Ra6+ {[%clk
0:01:04.7]} 51... Kg7 {[%clk 0:00:15.6]} 52. Ne6+ {[%clk 0:01:04.5]} 52... Kf7
{[%clk 0:00:14.9]} 53. Nf4 {[%clk 0:01:04.6]} 53... Rd7+ {[%clk 0:00:12]} 54.
Ke5 {[%clk 0:01:01.8]} 54... g5 {[%clk 0:00:11.1]} 55. hxg5 {[%clk 0:01:00.9]}
55... hxg5 {[%clk 0:00:10.8]} 56. Rf6+ {[%clk 0:01:00.3]} 56... Kg7 {[%clk
0:00:10.1]} 57. Ne6+ {[%clk 0:00:59.7]} 57... Kh7 {[%clk 0:00:09.3]} 58. Nxg5+
{[%clk 0:00:59.6]} 58... Kg7 {[%clk 0:00:10]} 59. Ne6+ {[%clk 0:00:59.3]} 59...
Kh7 {[%clk 0:00:10]} 60. Nf4 {[%clk 0:00:59.5]} 60... Be4 {[%clk 0:00:08.8]} 61.
Re6 {[%clk 0:00:57.6]} 61... Rg7 {[%clk 0:00:08.7]} 62. Nh5 {[%clk 0:00:55.3]}
62... Rg5 {[%clk 0:00:08.5]} 63. Nf6+ {[%clk 0:00:49.5]} 63... Kg7 {[%clk
0:00:09]} 64. Nxe4 {[%clk 0:00:47.2]} 64... fxe4+ {[%clk 0:00:08.8]} 65. Kf4
{[%clk 0:00:47.5]} 65... Rg6 {[%clk 0:00:07.3]} 66. Rxe4 {[%clk 0:00:45.6]}
66... Kf6 {[%clk 0:00:07.3]} 67. Ra4 {[%clk 0:00:43.1]} 67... Kg7 {[%clk
0:00:07.3]} 68. g4 {[%clk 0:00:41.1]} 68... Rc6 {[%clk 0:00:07]} 69. Kg5 {[%clk
0:00:40.1]} 69... Rc5+ {[%clk 0:00:06.9]} 70. Kh4 {[%clk 0:00:40.3]} 70... Rc6
{[%clk 0:00:06.4]} 71. Kh5 {[%clk 0:00:39.8]} 71... Rc5+ {[%clk 0:00:06]} 72. g5
{[%clk 0:00:40.1]} 72... Rc6 {[%clk 0:00:05.3]} 73. Ra7+ {[%clk 0:00:39.7]}
73... Kg8 {[%clk 0:00:05.5]} 74. Rd7 {[%clk 0:00:36.1]} 74... Rb6 {[%clk
0:00:05.5]} 75. Rd5 {[%clk 0:00:34.2]} 75... Rc6 {[%clk 0:00:05.8]} 76. Kg4
{[%clk 0:00:34.2]} 76... Rb6 {[%clk 0:00:05.8]} 77. Kf5 {[%clk 0:00:34.4]} 77...
Kg7 {[%clk 0:00:06.1]} 78. Rd7+ {[%clk 0:00:34]} 78... Kg8 {[%clk 0:00:06.3]}
79. Re7 {[%clk 0:00:33.3]} 79... Kf8 {[%clk 0:00:06.6]} 80. Re5 {[%clk
0:00:31.2]} 80... Kg7 {[%clk 0:00:06.6]} 81. Rc5 {[%clk 0:00:30.5]} 81... Ra6
{[%clk 0:00:06.9]} 82. Rc7+ {[%clk 0:00:30.6]} 82... Kg8 {[%clk 0:00:07.5]} 83.
Kg4 {[%clk 0:00:30.6]} 83... Rd6 {[%clk 0:00:07]} 84. Kh5 {[%clk 0:00:30.8]}
84... Ra6 {[%clk 0:00:06.4]} 85. Rb7 {[%clk 0:00:29.8]} 85... Rc6 {[%clk
0:00:06.3]} 86. Rb5 {[%clk 0:00:28.4]} 86... Ra6 {[%clk 0:00:06.4]} 87. g6
{[%clk 0:00:27.2]} 87... Ra2 {[%clk 0:00:05.7]} 88. Rb8+ {[%clk 0:00:26.4]}
88... Kg7 {[%clk 0:00:05.6]} 89. Rb7+ {[%clk 0:00:26.8]} 89... Kg8 {[%clk
0:00:05.6]} 90. Rb4 {[%clk 0:00:26.3]} 90... Rh2+ {[%clk 0:00:05]} 91. Kg5
{[%clk 0:00:22.8]} 91... Rg2+ {[%clk 0:00:05.5]} 92. Rg4 {[%clk 0:00:23.1]}
92... Rxg4+ {[%clk 0:00:05.2]} 93. Kxg4 {[%clk 0:00:23.7]} 93... Kg7 {[%clk
0:00:05.6]} 94. Kg5 {[%clk 0:00:24.3]} 94... Kg8 {[%clk 0:00:05.7]} 95. Kf6
{[%clk 0:00:24.5]} 95... Kf8 {[%clk 0:00:05.9]} 96. Kg5 {[%clk 0:00:23.9]} 96...
Kg7 {[%clk 0:00:05.7]} 97. Kh5 {[%clk 0:00:24.2]} 97... Kg8 {[%clk 0:00:05.8]}
98. Kh6 {[%clk 0:00:24.4]} 98... Kh8 {[%clk 0:00:06]} 99. Kg5 {[%clk 0:00:24.4]}
99... Kg7 {[%clk 0:00:06.1]} 100. Kf5 {[%clk 0:00:25.1]} 100... Kg8 {[%clk
0:00:05.8]} 101. Kf6 {[%clk 0:00:26]} 101... Kf8 {[%clk 0:00:06]} 102. g7+
{[%clk 0:00:26.9]} 102... Kg8 {[%clk 0:00:06.2]} 103. Ke5 {[%clk 0:00:27.3]}
103... Kxg7 {[%clk 0:00:06]} 1/2-1/2